fUSD/lending_fUSD_20250629
["ID","MTS","AMOUNT","RATE_DAILY","PERIOD"]
[368528028,1751195497281,-1046.27,0.00029315,3]
[368528029,1751195497291,-1419.39,0.00029315,3]
[368528030,1751195497299,-883.6,0.00029315,3]
[368528031,1751195497308,-490.0,0.00029315,3]
[368528032,1751195497318,-490.0,0.00029315,3]
[368528033,1751195497328,-1233.28,0.00029315,3]
[368528034,1751195497339,-1053.68,0.00029315,3]
[368528035,1751195497348,-1876.95,0.00029315,3]
[368528036,1751195497358,-1437.9,0.00029315,3]
[368528037,1751195497367,-577.96,0.00029315,3]
[368528038,1751195497376,-2637.31,0.00029315,3]
[368528039,1751195497386,-858.76,0.00029315,3]
[368528040,1751195497395,-1212.63,0.00029315,3]
[368528041,1751195497405,-1172.02,0.00029315,3]
[368528042,1751195497414,-490.0,0.00029315,3]
[368528043,1751195497423,-939.2,0.00029315,3]
[368528044,1751195497433,-1487.73,0.00029315,3]
[368528045,1751195497443,-513.84,0.00029315,3]
[368528046,1751195497452,-581.65,0.00029315,3]
[368528047,1751195497462,-1475.83,0.00029315,3]
[368528048,1751195497472,-1624.17,0.00029315,3]
[368528049,1751195497481,-490.0,0.00029315,3]
[368528050,1751195497492,-1094.1,0.00029315,3]
[368528051,1751195497501,-1150.15,0.00029315,3]
[368528052,1751195497511,-934.06,0.00029315,3]
[368528053,1751195497521,-3721.52,0.00029315,3]
[368528054,1751195497530,-840.28,0.00029315,3]
[368528055,1751195497539,-2369.11,0.00029315,3]
[368528056,1751195497549,-1892.33,0.00029315,3]
[368528057,1751195497558,-3862.52,0.00029315,3]
[368528058,1751195497568,-943.0,0.00029315,3]
[368528059,1751195497578,-1500.56,0.00029315,3]
[368528060,1751195497588,-1722.76,0.00029315,3]
[368528061,1751195497598,-1385.63,0.00029315,3]
[368528062,1751195497608,-690.18,0.00029315,3]
[368528063,1751195497617,-490.0,0.00029315,3]
[368528064,1751195497627,-1738.51,0.00029315,3]
[368528065,1751195497636,-893.12,0.00029315,3]
[368528066,1751195497646,-490.0,0.00029315,3]
[368528067,1751195497656,-490.0,0.00029315,3]
[368528068,1751195497666,-3272.52,0.00029315,3]
[368528069,1751195497675,-490.0,0.00029315,3]
[368528070,1751195497684,-490.0,0.00029315,3]
[368528071,1751195497694,-884.39,0.00029315,3]
[368528072,1751195497704,-1232.52,0.00029315,3]
[368528073,1751195497714,-490.0,0.00029315,3]
[368528074,1751195497723,-2520.33,0.00029315,3]
[368528075,1751195497734,-490.0,0.00029315,3]
[368528076,1751195497745,-2639.97,0.00029315,3]
[368528077,1751195497755,-1073.7,0.00029315,3]
[368528078,1751195497764,-490.0,0.00029315,3]
[368528079,1751195497775,-8290.98,0.00029315,3]
[368528080,1751195497784,-1075.68,0.00029315,3]
[368528081,1751195497794,-4185.34,0.00029315,3]
[368528082,1751195497803,-490.0,0.00029315,3]
[368528083,1751195497813,-490.0,0.00029315,3]
[368528084,1751195497822,-490.0,0.00029315,3]
[368528085,1751195497832,-506.8,0.00029315,3]
[368528086,1751195497842,-81101.22,0.00029315,3]
[368528087,1751195497851,-490.0,0.00029315,3]
[368528088,1751195497862,-490.0,0.00029315,3]
[368528089,1751195497871,-942.53,0.00029315,3]
[368528090,1751195497880,-1504.0092486,0.00029316,5]
[368528091,1751195497890,-649.0400951,0.00029342,2]
[368528092,1751195497899,-177.35301896,0.00029484,15]
[368528093,1751195497908,-65140.93296226,0.00029489,2]
[368528094,1751195497917,-2500.0,0.00029564,5]
[368528095,1751195497926,-16692.29724948,0.0002957,2]
[368528096,1751195497935,-490.0,0.00029588,3]
[368528097,1751195497944,-490.0,0.00029588,3]
[368528098,1751195497954,-490.0,0.00029588,3]
[368528099,1751195497963,-998.55,0.00029588,3]
[368528100,1751195497972,-2019.21,0.00029588,3]
[368528101,1751195497981,-1258.14,0.00029588,3]
[368528102,1751195497991,-522.39,0.00029588,3]
[368528103,1751195498000,-592.44785377,0.00029588,3]
[368528104,1751195498010,-714.21,0.00029588,3]
[368528105,1751195498020,-3605.69,0.00029588,3]
[368528106,1751195498029,-5060.72,0.00029588,3]
[368528107,1751195498039,-1095.63,0.00029588,3]
[368528108,1751195498048,-1236.33,0.00029588,3]
[368528109,1751195498057,-10700.98,0.00029588,3]
[368528110,1751195498066,-1100.76,0.00029588,3]
[368528111,1751195498076,-1042.29,0.00029588,3]
[368528112,1751195498084,-1725.87,0.00029588,3]
[368528113,1751195498094,-1687.85,0.00029588,3]
[368528114,1751195498103,-2774.34,0.00029588,3]
[368528115,1751195498113,-490.0,0.00029588,3]
[368528116,1751195498122,-490.0,0.00029589,3]
[368528117,1751195498131,-490.0,0.00029589,3]
[368528118,1751195498141,-490.0,0.00029589,3]
[368528119,1751195498150,-490.0,0.00029589,3]
[368528120,1751195498159,-490.0,0.00029589,3]
[368528121,1751195498168,-572.57,0.00029589,3]
[368528122,1751195498178,-490.0,0.00029589,3]
[368528123,1751195498187,-828.1,0.00029589,3]
[368528124,1751195498196,-490.0,0.00029589,3]
[368528125,1751195498206,-490.0,0.00029589,3]
[368528126,1751195498214,-490.0,0.00029589,3]
[368528127,1751195498224,-534.26575698,0.00029589,3]
[368528128,1751195498234,-490.0,0.00029589,3]
[368528129,1751195498244,-490.0,0.00029589,3]
[368528130,1751195498253,-490.0,0.00029589,3]
[368528131,1751195498263,-490.0,0.00029589,3]
[368528132,1751195498272,-490.0,0.00029589,3]
[368528133,1751195498281,-490.0,0.00029589,3]
[368528134,1751195498290,-736.21,0.00029589,3]
[368528135,1751195498300,-490.0,0.00029589,3]
[368528136,1751195498310,-490.0,0.00029589,3]
[368528137,1751195498319,-186.57105285,0.00029589,3]
[368528138,1751195498330,-490.0,0.00029589,3]
[368528139,1751195498339,-490.0,0.00029589,3]
[368528140,1751195498349,-498.5,0.00029589,3]
[368528141,1751195498358,-490.0,0.00029589,3]
[368528142,1751195498367,-490.0,0.00029589,3]
[368528143,1751195498376,-490.0,0.00029589,3]
[368528144,1751195498385,-490.0,0.00029589,3]
[368528145,1751195498394,-490.0,0.00029589,3]
[368528146,1751195498403,-609.0,0.00029589,3]
[368528147,1751195498412,-490.0,0.00029589,3]
[368528148,1751195498421,-490.0,0.00029589,3]
[368528149,1751195498430,-490.0,0.00029589,3]
[368528150,1751195498438,-490.0,0.00029589,3]
[368528151,1751195498448,-490.0,0.00029589,3]
[368528152,1751195498458,-490.0,0.00029589,3]
[368528153,1751195498467,-490.0,0.00029589,3]
[368528154,1751195498476,-490.0,0.00029589,3]
[368528155,1751195498486,-490.0,0.00029589,3]
[368528156,1751195498495,-490.0,0.00029589,3]
[368528157,1751195498505,-490.0,0.00029589,3]
[368528158,1751195498516,-490.0,0.00029589,3]
[368528159,1751195498525,-1266.21,0.00029589,3]
[368528160,1751195498535,-490.0,0.00029589,3]
[368528161,1751195498544,-490.0,0.00029589,3]
[368528162,1751195498553,-419.65003952,0.00029589,3]
[368528163,1751195498562,-598.13,0.00029589,3]
[368528164,1751195498572,-1113.04,0.00029589,3]
[368528165,1751195498581,-216.99420222,0.00029589,3]
[368528166,1751195498590,-523.97,0.00029589,3]
[368528167,1751195498599,-679.56,0.00029589,3]
[368528168,1751195498608,-490.0,0.00029589,3]
[368528169,1751195498617,-490.0,0.00029589,3]
[368528170,1751195498627,-490.0,0.00029589,3]
[368528171,1751195498636,-490.0,0.00029589,3]
[368528172,1751195498649,-594.99,0.00029589,3]
[368528173,1751195498659,-490.0,0.00029589,3]
[368528174,1751195498669,-490.0,0.00029589,3]
[368528175,1751195498679,-490.0,0.00029589,3]
[368528176,1751195498688,-1446.76,0.00029589,3]
[368528177,1751195498698,-490.0,0.00029589,3]
[368528178,1751195498707,-490.0,0.00029589,3]
[368528179,1751195498716,-490.0,0.00029589,3]
[368528180,1751195498725,-490.0,0.00029589,3]
[368528181,1751195498734,-490.0,0.00029589,3]
[368528182,1751195498743,-490.0,0.00029589,3]
[368528183,1751195498753,-1256.21,0.00029589,3]
[368528184,1751195498763,-663.42,0.00029589,3]
[368528185,1751195498772,-490.0,0.00029589,3]
[368528186,1751195498781,-490.0,0.00029589,3]
[368528187,1751195498790,-1418.54,0.00029589,3]
[368528188,1751195498799,-490.0,0.00029589,3]
[368528189,1751195498809,-490.0,0.00029589,3]
[368528190,1751195498818,-490.0,0.00029589,3]
[368528191,1751195498827,-490.0,0.00029589,3]
[368528192,1751195498835,-490.0,0.00029589,3]
[368528193,1751195498844,-490.0,0.00029589,3]
[368528194,1751195499035,-490.0,0.00029589,3]
[368528195,1751195499045,-496.37,0.00029589,3]
[368528196,1751195499055,-1013.41,0.00029589,3]
[368528197,1751195499064,-490.0,0.00029589,3]
[368528198,1751195499074,-1113.41,0.00029589,3]
[368528199,1751195499084,-490.0,0.00029589,3]
[368528200,1751195499093,-643.24,0.00029589,3]
[368528201,1751195499102,-490.0,0.00029589,3]
[368528202,1751195499111,-490.0,0.00029589,3]
[368528203,1751195499120,-490.0,0.00029589,3]
[368528204,1751195499130,-490.0,0.00029589,3]
[368528205,1751195499140,-827.85,0.00029589,3]
[368528206,1751195499149,-490.0,0.00029589,3]
[368528207,1751195499158,-1223.98,0.00029589,3]
[368528208,1751195499167,-560.05,0.00029589,3]
[368528209,1751195499176,-815.38,0.00029589,3]
[368528210,1751195499187,-745.76,0.00029589,3]
[368528211,1751195499197,-566.05,0.00029589,3]
[368528212,1751195499207,-490.0,0.00029589,3]
[368528213,1751195499216,-568.47,0.00029589,3]
[368528214,1751195499226,-1242.08,0.00029589,3]
[368528215,1751195499235,-490.0,0.00029589,3]
[368528216,1751195499245,-957.14,0.00029589,3]
[368528217,1751195499255,-490.0,0.00029589,3]
[368528218,1751195499264,-490.0,0.00029589,3]
[368528219,1751195499273,-490.0,0.00029589,3]
[368528220,1751195499283,-490.0,0.00029589,3]
[368528221,1751195499293,-532.08,0.00029589,3]
[368528222,1751195499303,-490.0,0.00029589,3]
[368528223,1751195499313,-1422.6,0.00029589,3]
[368528224,1751195499323,-490.0,0.00029589,3]
[368528225,1751195499336,-490.0,0.00029589,3]
[368528226,1751195499345,-490.0,0.00029589,3]
[368528227,1751195499355,-490.0,0.00029589,3]
[368528228,1751195499364,-490.0,0.00029589,3]
[368528229,1751195499375,-756.27,0.00029589,3]
[368528230,1751195499385,-1401.37,0.00029589,3]
[368528231,1751195499394,-915.4,0.00029589,3]
[368528232,1751195499402,-490.0,0.00029589,3]
[368528233,1751195499414,-490.0,0.00029589,3]
[368528234,1751195499424,-1294.27,0.00029589,3]
[368528235,1751195499433,-759.55,0.00029589,3]
[368528236,1751195499441,-598.76,0.00029589,3]
[368528237,1751195499451,-1087.93,0.00029589,3]
[368528238,1751195499460,-490.0,0.00029589,3]
[368528239,1751195499469,-490.0,0.00029589,3]
[368528240,1751195499479,-490.0,0.00029589,3]
[368528241,1751195499488,-490.0,0.00029589,3]
[368528242,1751195499498,-490.0,0.00029589,3]
[368528243,1751195499507,-490.0,0.00029589,3]
[368528244,1751195499517,-525.72,0.00029589,3]
[368528245,1751195499527,-1267.05,0.00029589,3]
[368528246,1751195499536,-490.0,0.00029589,3]
[368528247,1751195499544,-490.0,0.00029589,3]
[368528248,1751195499554,-1134.9,0.00029589,3]
[368528249,1751195499564,-1224.95,0.00029589,3]
[368528250,1751195499574,-493.99,0.00029589,3]
[368528251,1751195499583,-490.0,0.00029589,3]
[368528252,1751195499592,-490.0,0.00029589,3]
[368528253,1751195499602,-490.0,0.00029589,3]
[368528254,1751195499612,-490.0,0.00029589,3]
[368528255,1751195499621,-571.79,0.00029589,3]
[368528256,1751195499631,-735.44,0.00029589,3]
[368528257,1751195499640,-549.79,0.00029589,3]
[368528258,1751195499650,-490.0,0.00029589,3]
[368528259,1751195499659,-738.46,0.00029589,3]
[368528260,1751195499668,-1388.19,0.00029589,3]
[368528261,1751195499678,-954.67,0.00029589,3]
[368528262,1751195499688,-490.0,0.00029589,3]
[368528263,1751195499697,-843.616844,0.00029589,3]
[368528264,1751195499706,-490.0,0.00029589,3]
[368528265,1751195499715,-490.0,0.00029589,3]
[368528266,1751195499724,-292.491065,0.00029589,3]
[368528267,1751195499733,-729.8,0.00029589,3]
[368528268,1751195499743,-618.02,0.00029589,3]
[368528269,1751195499752,-717.63,0.00029589,3]
[368528270,1751195499761,-490.0,0.00029589,3]
[368528271,1751195499770,-779.17,0.00029589,3]
[368528272,1751195499779,-490.0,0.00029589,3]
[368528273,1751195499788,-490.49,0.00029589,3]
[368528274,1751195499797,-490.46,0.00029589,3]
[368528275,1751195499807,-490.0,0.00029589,3]
[368528276,1751195499816,-1183.749927,0.00029589,3]
[368528277,1751195499825,-701.72,0.00029589,3]
[368528278,1751195499834,-490.0,0.00029589,3]
[368528279,1751195499843,-415.11640214,0.00029589,3]
[368528280,1751195499851,-1063.67,0.00029589,3]
[368528281,1751195499860,-663.95,0.00029589,3]
[368528282,1751195499870,-862.32,0.00029589,3]
[368528283,1751195499880,-1237.98,0.00029589,3]
[368528284,1751195499889,-490.0,0.00029589,3]
[368528285,1751195499899,-827.18,0.00029589,3]
[368528286,1751195499909,-490.0,0.00029589,3]
[368528287,1751195499918,-490.0,0.00029589,3]
[368528288,1751195499928,-823.41,0.00029589,3]
[368528289,1751195499937,-490.0,0.00029589,3]
[368528290,1751195499948,-668.76,0.00029589,3]
[368528291,1751195499957,-547.47,0.00029589,3]
[368528292,1751195499966,-748.67,0.00029589,3]
[368528293,1751195499975,-490.0,0.00029589,3]
[368528294,1751195499985,-532.76758718,0.00029589,3]
[368528295,1751195499994,-1401.904447,0.00029589,3]
[368528296,1751195500004,-490.0,0.00029589,3]
[368528297,1751195500013,-490.0,0.00029589,3]
[368528298,1751195500023,-1344.91,0.00029589,3]
[368528299,1751195500032,-588.25,0.00029589,3]
[368528300,1751195500041,-490.0,0.00029589,3]
[368528301,1751195500050,-688.18,0.00029589,3]
[368528302,1751195500059,-490.0,0.00029589,3]
[368528303,1751195500068,-918.01,0.00029589,3]
[368528304,1751195500077,-490.0,0.00029589,3]
[368528305,1751195500087,-300.0,0.00029589,3]
[368528306,1751195500096,-606.16,0.00029589,3]
[368528307,1751195500107,-504.36,0.00029589,3]
[368528308,1751195500117,-490.0,0.00029589,3]
[368528309,1751195500127,-860.61,0.00029589,3]
[368528310,1751195500136,-490.0,0.00029589,3]
[368528311,1751195500146,-490.0,0.00029589,3]
[368528312,1751195500155,-492.65,0.00029589,3]
[368528313,1751195500164,-1029.14,0.00029589,3]
[368528314,1751195500173,-490.95,0.00029589,3]
[368528315,1751195500182,-490.0,0.00029589,3]
[368528316,1751195500191,-490.0,0.00029589,3]
[368528317,1751195500200,-490.0,0.00029589,3]
[368528318,1751195500209,-879.43,0.00029589,3]
[368528319,1751195500219,-576.42,0.00029589,3]
[368528320,1751195500228,-490.0,0.00029589,3]
[368528321,1751195500238,-490.0,0.00029589,3]
[368528322,1751195500247,-593.25,0.00029589,3]
[368528323,1751195500257,-1231.36,0.00029589,3]
[368528324,1751195500266,-537.32,0.00029589,3]
[368528325,1751195500275,-1062.64,0.00029589,3]
[368528326,1751195500285,-603.18,0.00029589,3]
[368528327,1751195500303,-587.36,0.00029589,3]
[368528328,1751195500316,-576.03,0.00029589,3]
[368528329,1751195500336,-490.0,0.00029589,3]
[368528330,1751195500353,-490.0,0.00029589,3]
[368528331,1751195500368,-618.5,0.00029589,3]
[368528332,1751195500386,-996.14,0.00029589,3]
[368528333,1751195500405,-588.38,0.00029589,3]
[368528334,1751195500423,-559.62,0.00029589,3]
[368528335,1751195500442,-593.04,0.00029589,3]
[368528336,1751195500460,-543.61,0.00029589,3]
[368528337,1751195500478,-815.71,0.00029589,3]
[368528338,1751195500493,-594.32,0.00029589,3]
[368528339,1751195500509,-386.27810075,0.00029589,3]
[368528340,1751195500524,-490.0,0.00029589,3]
[368528341,1751195500539,-490.0,0.00029589,3]
[368528342,1751195500554,-490.0,0.00029589,3]
[368528343,1751195500568,-496.77,0.00029589,3]
[368528344,1751195500583,-490.0,0.00029589,3]
[368528345,1751195500598,-630.45,0.00029589,3]
[368528346,1751195500614,-490.0,0.00029589,3]
[368528347,1751195500630,-612.62,0.00029589,3]
[368528348,1751195500644,-490.0,0.00029589,3]
[368528349,1751195500660,-490.0,0.00029589,3]
[368528350,1751195500674,-734.99,0.00029589,3]
[368528351,1751195500692,-941.86,0.00029589,3]
[368528352,1751195500707,-606.81,0.00029589,3]
[368528353,1751195500721,-490.0,0.00029589,3]
[368528354,1751195500736,-490.0,0.00029589,3]
[368528355,1751195500750,-490.0,0.00029589,3]
[368528356,1751195500765,-1147.39,0.00029589,3]
[368528357,1751195500779,-534.75,0.00029589,3]
[368528358,1751195500794,-490.0,0.00029589,3]
[368528359,1751195500809,-768.88,0.00029589,3]
[368528360,1751195500824,-501.48,0.00029589,3]
[368528361,1751195500838,-765.22,0.00029589,3]
[368528362,1751195500854,-490.0,0.00029589,3]
[368528363,1751195500869,-624.11,0.00029589,3]
[368528364,1751195500883,-490.0,0.00029589,3]
[368528365,1751195500898,-515.33833356,0.00029589,3]
[368528366,1751195500913,-518.02,0.00029589,3]
[368528367,1751195500929,-490.0,0.00029589,3]
[368528368,1751195500943,-490.0,0.00029589,3]
[368528369,1751195500957,-691.65,0.00029589,3]
[368528370,1751195500971,-490.0,0.00029589,3]
[368528371,1751195500986,-490.0,0.00029589,3]
[368528372,1751195501000,-1554.34,0.00029589,3]
[368528373,1751195501014,-536.67,0.00029589,3]
[368528374,1751195501029,-490.0,0.00029589,3]
[368528375,1751195501045,-490.0,0.00029589,3]
[368528376,1751195501061,-1504.15,0.00029589,3]
[368528377,1751195501076,-708.27,0.00029589,3]
[368528378,1751195501090,-490.0,0.00029589,3]
[368528379,1751195501104,-490.0,0.00029589,3]
[368528380,1751195501119,-490.0,0.00029589,3]
[368528381,1751195501133,-516.87,0.00029589,3]
[368528382,1751195501148,-490.0,0.00029589,3]
[368528383,1751195501162,-490.0,0.00029589,3]
[368528384,1751195501177,-490.0,0.00029589,3]
[368528385,1751195501192,-490.0,0.00029589,3]
[368528386,1751195501207,-604.89,0.00029589,3]
[368528387,1751195501224,-490.0,0.00029589,3]
[368528388,1751195501239,-1638.76,0.00029589,3]
[368528389,1751195501253,-490.0,0.00029589,3]
[368528390,1751195501268,-590.89,0.00029589,3]
[368528391,1751195501282,-1217.95,0.00029589,3]
[368528392,1751195501296,-490.0,0.00029589,3]
[368528393,1751195501311,-490.0,0.00029589,3]
[368528394,1751195501325,-528.4,0.00029589,3]
[368528395,1751195501339,-498.25,0.00029589,3]
[368528396,1751195501350,-1047.55,0.00029589,3]
[368528397,1751195501360,-1535.93,0.00029589,3]
[368528398,1751195501369,-932.64,0.00029589,3]
[368528399,1751195501382,-490.0,0.00029589,3]
[368528400,1751195501391,-1410.37,0.00029589,3]
[368528401,1751195501400,-857.63,0.00029589,3]
[368528402,1751195501411,-490.0,0.00029589,3]
[368528403,1751195501421,-764.97,0.00029589,3]
[368528404,1751195501430,-490.0,0.00029589,3]
[368528405,1751195501439,-1226.51,0.00029589,3]
[368528406,1751195501449,-719.95,0.00029589,3]
[368528407,1751195501458,-979.74,0.00029589,3]
[368528408,1751195501467,-991.19,0.00029589,3]
[368528409,1751195501476,-490.0,0.00029589,3]
[368528410,1751195501485,-892.18,0.00029589,3]
[368528411,1751195501494,-490.0,0.00029589,3]
[368528412,1751195501504,-490.0,0.00029589,3]
[368528413,1751195501513,-490.0,0.00029589,3]
[368528414,1751195501523,-523.71,0.00029589,3]
[368528415,1751195501532,-579.25553682,0.00029589,3]
[368528416,1751195501541,-490.0,0.00029589,3]
[368528417,1751195501551,-1618.13,0.00029589,3]
[368528418,1751195501561,-1261.23,0.00029589,3]
[368528419,1751195501570,-662.39,0.00029589,3]
[368528420,1751195501580,-533.43,0.00029589,3]
[368528421,1751195501589,-851.98,0.00029589,3]
[368528422,1751195501598,-3244.07,0.00029589,3]
[368528423,1751195501608,-490.0,0.00029589,3]
[368528424,1751195501617,-490.0,0.00029589,3]
[368528425,1751195501627,-490.0,0.00029589,3]
[368528426,1751195501636,-267.09855368,0.00029589,3]
[368528427,1751195501671,-222.90144632,0.00029589,3]
[368528428,1751195501680,-490.0,0.00029589,3]
[368528429,1751195501689,-490.0,0.00029589,3]
[368528430,1751195501698,-650.15,0.00029589,3]
[368528431,1751195501707,-643.65,0.00029589,3]
[368528432,1751195501716,-588.08,0.00029589,3]
[368528433,1751195501725,-793.06,0.00029589,3]
[368528434,1751195501734,-1494.92,0.00029589,3]
[368528435,1751195501743,-11062.2,0.00029589,3]
[368528436,1751195501753,-650.49,0.00029589,3]
[368528437,1751195501762,-1369.42,0.00029589,3]
[368528438,1751195501771,-490.0,0.00029589,3]
[368528439,1751195501781,-490.0,0.00029589,3]
[368528440,1751195501791,-992.98,0.00029589,3]
[368528441,1751195501800,-490.0,0.00029589,3]
[368528442,1751195501809,-490.0,0.00029589,3]
[368528443,1751195501819,-2865.08,0.00029589,3]
[368528444,1751195501828,-490.0,0.00029589,3]
[368528445,1751195501838,-1255.19,0.00029589,3]
[368528446,1751195501847,-1048.51,0.00029589,3]
[368528447,1751195501856,-572.75381684,0.00029589,3]
[368528448,1751195501866,-895.06,0.00029589,3]
[368528449,1751195501875,-490.0,0.00029589,3]
[368528450,1751195501884,-1140.15,0.00029589,3]
[368528451,1751195501893,-1098.84,0.00029589,3]
[368528452,1751195501902,-689.9,0.00029589,3]
[368528453,1751195501911,-1475.7,0.00029589,3]
[368528454,1751195501920,-509.89,0.00029589,3]
[368528455,1751195501929,-846.61,0.00029589,3]
[368528456,1751195501940,-490.0,0.00029589,3]
[368528457,1751195501949,-800.75,0.00029589,3]
[368528458,1751195501958,-490.0,0.00029589,3]
[368528459,1751195501968,-1724.34,0.00029589,3]
[368528460,1751195501977,-839.61,0.00029589,3]
[368528461,1751195502548,-1838.21,0.00029589,3]
[368528462,1751195502569,-1420.15,0.00029589,3]
[368528463,1751195502588,-490.0,0.00029589,3]
[368528464,1751195502607,-511.65,0.00029589,3]
[368528465,1751195502626,-1365.53,0.00029589,3]
[368528466,1751195502644,-584.75665608,0.00029589,3]
[368528467,1751195502654,-753.94,0.00029589,3]
[368528468,1751195502663,-4179.4,0.00029589,3]
[368528469,1751195502672,-738.89,0.00029589,3]
[368528470,1751195502681,-1126.33,0.00029589,3]
[368528471,1751195502690,-490.0,0.00029589,3]
[368528472,1751195502700,-2082.18,0.00029589,3]
[368528473,1751195502709,-3115.11,0.00029589,3]
[368528474,1751195502719,-807.19,0.00029589,3]
[368528475,1751195502728,-1049.11,0.00029589,3]
[368528476,1751195502737,-740.57,0.00029589,3]
[368528477,1751195502746,-490.0,0.00029589,3]
[368528478,1751195502756,-1044.97,0.00029589,3]
[368528479,1751195502765,-490.0,0.00029589,3]
[368528480,1751195502774,-1018.69,0.00029589,3]
[368528481,1751195502784,-1329.73,0.00029589,3]
[368528482,1751195502793,-664.26,0.00029589,3]
[368528483,1751195502803,-765.79,0.00029589,3]
[368528484,1751195502812,-1231.21,0.00029589,3]
[368528485,1751195502822,-5898.08,0.00029589,3]
[368528486,1751195502832,-1354.66,0.00029589,3]
[368528487,1751195502842,-801.57,0.00029589,3]
[368528488,1751195502851,-678.52,0.00029589,3]
[368528489,1751195502860,-490.0,0.00029589,3]
[368528490,1751195502870,-728.11,0.00029589,3]
[368528491,1751195502879,-490.0,0.00029589,3]
[368528492,1751195502888,-490.0,0.00029589,3]
[368528493,1751195502898,-853.69,0.00029589,3]
[368528494,1751195502907,-2091.4,0.00029589,3]
[368528495,1751195502916,-1560.41,0.00029589,3]
[368528496,1751195502926,-898.14,0.00029589,3]
[368528497,1751195502935,-337.58738389,0.00029589,3]
[368528498,1751195502945,-751.28,0.00029589,3]
[368528499,1751195502954,-490.0,0.00029589,3]
[368528500,1751195502963,-1923.3,0.00029589,3]
[368528501,1751195502973,-1248.49,0.00029589,3]
[368528502,1751195502982,-824.08,0.00029589,3]
[368528503,1751195502991,-490.0,0.00029589,3]
[368528504,1751195503001,-836.36,0.00029589,3]
[368528505,1751195503011,-2818.09,0.00029589,3]
[368528506,1751195503020,-388.7349077,0.00029589,3]
[368528507,1751195503341,-819.7850923,0.00029589,3]
[368528508,1751195503350,-2281.84,0.00029589,3]
[368528509,1751195503360,-1308.74,0.00029589,3]
[368528510,1751195503369,-629.96556547,0.00029589,3]
[368528511,1751195503392,-509.71888131,0.00027945,3]
[368528512,1751195503574,-299.86690152,0.00027945,3]
[368528513,1751195504186,-490.0,0.00027397,3]
[368528514,1751195504197,-32.5,0.00027945,3]
[368528515,1751195504216,-374.72962927,0.00027945,3]
[368528516,1751195504229,-293.80853246,0.00027945,3]
[368528517,1751195504241,-208.51605544,0.00027945,3]
[368528518,1751195504251,-218.66822992,0.00028219,3]
[368528519,1751195504262,-271.33177008,0.00028219,3]
[368528520,1751195504272,-266.54822992,0.00028219,3]
[368528521,1751195504283,-250.48040969,0.00028219,3]
[368528522,1751195504297,-1202.11136039,0.00028219,3]
[368528523,1751195504308,-1719.14,0.00028493,3]
[368528524,1751195504319,-949.94822241,0.00028767,3]
[368528525,1751195504333,-769.19177759,0.00028767,3]
[368528526,1751195504346,-464.49740205,0.00029041,3]
[368528527,1751195504359,-25.50259795,0.00029041,3]